Cogmind - Beta 15 @@@ ROGUE MODE // 2025.09.15 @ 22:12:25 Player: cottonman132 Result: Destroyed by as-74478 with Assembled Rifle Performance ------------- Evolutions (1) 500 Regions Visited (5) 1000 Robots Destroyed (9) 45 Value Destroyed (356) 356 Prototype IDs (1) 20 Alien Tech Used (0) 0 Bonus (-73) -73 TOTAL SCORE: 1848 Bonus ------- Pacifist 200 Friendly Fire -273 Cogmind --------- Core Integrity 0/400 Matter 300/300 Energy 100/100 System Corruption 5% Temperature Cool (0) Movement Walking (120) Location -9/Exiles Parts ------- > --- POWER (1) -------- (None) > --- PROPULSION (3) --- Aluminum Leg > --- UTILITY (3) ------ Improved Heat Sink Small Storage Unit > --- WEAPON (2) ------- Flail Flail > --- INVENTORY (8) ---- Improved VTOL Module Improved VTOL Module Improved VTOL Module High-capacity Storage Unit Flail Peak State ------------ > --- POWER ------------ Light Ion Engine > --- PROPULSION ------- Improved VTOL Module Improved VTOL Module Improved VTOL Module > --- UTILITY ---------- Improved Heat Sink Small Storage Unit > --- WEAPON ----------- (None) > --- INVENTORY -------- Ion Engine Aluminum Leg Aluminum Leg Huge Storage Unit Small Laser Assault Rifle Light Assault Rifle [Rating: 17] Favorites ----------- Power Ion Engine Engine Ion Engine Propulsion Aluminum Leg Leg Aluminum Leg Flight Unit Improved VTOL Module Utility Small Storage Unit Device Improved Heat Sink Storage Small Storage Unit Protection Hardened Light Armor Plating Weapon Flail Impact Weapon Flail Build | -11 -10 -10 -9 -9 -9 ------- Run | Yrd Mat Min Mat Min Exi Slots Evolved 2 | . . . 2 . . Power . | . . . . . . Propulsion 1 | . . . 1 . . Utility 1 | . . . 1 . . Weapon . | . . . . . . Parts Attached 19 | 4 . . 13 2 . Power 3 | 1 . . 2 . . Engine 3 | 1 . . 2 . . Core . | . . . . . . Reactor . | . . . . . . Propulsion 10 | 2 . . 6 2 . Treads . | . . . . . . Leg 7 | 2 . . 3 2 . Wheel . | . . . . . . Hover . | . . . . . . Flight 3 | . . . 3 . . Utility 3 | 1 . . 2 . . Device 1 | . . . 1 . . Storage 1 | 1 . . . . . Processor . | . . . . . . Hackware . | . . . . . . Protection 1 | . . . 1 . . Artifact . | . . . . . . Weapon 3 | . . . 3 . . Energy Gun . | . . . . . . Energy Cannon . | . . . . . . Ballistic Gun . | . . . . . . Ballistic Cannon . | . . . . . . Launcher . | . . . . . . Special Weapon . | . . . . . . Impact Weapon 3 | . . . 3 . . Slashing Weapon . | . . . . . . Piercing Weapon . | . . . . . . Special Melee Weapon . | . . . . . . Unidentified Prototypes 1 | . . . 1 . . Parts Lost 9 | . . . 5 . 4 Power 2 | . . . 1 . 1 Propulsion 6 | . . . 4 . 2 Utility 1 | . . . . . 1 Weapon . | . . . . . . Highest Loss Streak 4 | . . . 3 . 4 To Critical Strikes . | . . . . . . Average Backups 5 | 3 4 5 5 5 5 Power . | . 1 1 . . . Propulsion 2 | . . . 2 3 3 Utility . | . . 1 1 1 1 Weapon 1 | 1 3 3 1 1 1 Tool/Special . | . . . . . . Unused Backups 7 | . . . 4 . 3 Power . | . . . . . . Propulsion 1 | . . . 1 . . Utility 2 | . . . . . 2 Weapon 4 | . . . 3 . 1 Tool/Special . | . . . . . . Average Slot Usage (%) 85 | . 57 57 74 93 98 Engine 11 | . 14 14 11 11 10 Leg 28 | . 28 28 17 26 32 Flight 1 | . . . 6 . . Device 8 | . . . 8 11 11 Storage 11 | . 14 14 11 11 11 Protection 7 | . . . 2 11 10 Impact Weapon 16 | . . . 16 22 22 Peak Build Rating 17 | 4 4 4 17 15 15 Average Rating 12 | 3 4 4 12 14 14 On Entrance 6 | . 4 4 4 13 15 Naked Turns . | . . . . . . Heaviest Build 20 | 10 10 10 20 20 20 Greatest Support 30 | 20 20 20 30 30 30 Greatest Overweight (x) 1 | 1 . . 1 1 . Average Overweight (x) . | . . . . . . Largest Inventory Capacity 8 | 8 8 8 8 8 8 Average Capacity 7 | 7 8 8 8 8 8 Most Carried 8 | 4 5 5 8 6 6 Average Carried 5 | 2 4 5 5 5 5 Final Capacity 8 | 8 8 8 8 8 8 Final Carried 5 | 4 5 5 5 5 5 Class Distribution -------------------- 96% | Mutant 3% | Sprinter Dominant Class ---------------- Mutant | -10/Materials Mutant | -10/Mines Mutant | -9/Materials Mutant | -9/Mines Mutant | -9/Exiles Resources | -11 -10 -10 -9 -9 -9 ----------- Run | Yrd Mat Min Mat Min Exi Matter Collected 391 | 219 . . 152 20 . Remotely . | . . . . . . Salvage Created 369 | . . . 244 103 22 Parts 16 | . . . 12 4 . Haulers Intercepted . | . . . . . . Recyclers Shooed 1 | 1 . . . . . Parts Field Recycled . | . . . . . . Retrieved Matter . | . . . . . . Parts Self-Destructed . | . . . . . . Prevented . | . . . . . . Kills | -11 -10 -10 -9 -9 -9 ------- Run | Yrd Mat Min Mat Min Exi Combat Hostiles Destroyed 11 | . . . 7 2 2 Melee 9 | . . . 6 1 2 Classes Destroyed 3 | . . . 2 . 1 Grunt 8 | . . . 6 2 . Sentry 1 | . . . 1 . . Assembled 2 | . . . . . 2 Best Kill Streak 4 | . . . 4 2 1 Combat Bots Only 4 | . . . 4 2 1 Max Kills in Single Turn 1 | . . . 1 1 1 Gunslinging . | . . . . . . Exploded . | . . . . . . Melee 1 | . . . 1 1 1 Uniques/NPCs Destroyed . | . . . . . . Combat | -11 -10 -10 -9 -9 -9 -------- Run | Yrd Mat Min Mat Min Exi Hostile Shots Fired 171 | . 14 2 86 6 63 Missed 51 | . 9 2 20 2 18 Hits 120 | . 5 . 66 4 45 Melee 3 | . . . . . 3 Projectile 117 | . 5 . 66 4 42 Critical Strikes 3 | . . . 2 . 1 Damage Taken 1688 | . 53 . 913 44 678 Core 411 | . . . 183 . 228 Absorbed by Shields . | . . . . . . Core Remaining (%) 100 | 100 . 100 . . . Volleys Fired . | . . . . . . Largest . | . . . . . . Hottest . | . . . . . . Shots Fired . | . . . . . . Gun . | . . . . . . Cannon . | . . . . . . Launcher . | . . . . . . Special . | . . . . . . Kinetic . | . . . . . . Thermal . | . . . . . . Explosive . | . . . . . . Electromagnetic . | . . . . . . Robot Hit Streak . | . . . . . . Robot Miss Streak . | . . . . . . Penetration Max . | . . . . . . Secondary Targets . | . . . . . . Shots Hit Robots 29 | . . . 22 2 5 Core Hits 7 | . . . 6 . 1 Critical Kills 1 | . . . 1 . . Critical Parts Destroyed 2 | . . . 1 1 . Critical Strikes 3 | . . . 2 1 . Smash 3 | . . . 2 1 . Melee Attacks 50 | . . . 34 3 13 Impact 50 | . . . 34 3 13 Slashing . | . . . . . . Piercing . | . . . . . . Sneak Attacks 2 | . . . . 1 1 Combat Hostiles 1 | . . . . 1 . Follow-up Attacks 5 | . . . 4 . 1 Damage Inflicted 1246 | 2 . . 818 137 289 Guns . | . . . . . . Cannons . | . . . . . . Explosions . | . . . . . . Melee 1244 | . . . 818 137 289 Ramming 2 | 2 . . . . . Kinetic . | . . . . . . Thermal . | . . . . . . Explosive . | . . . . . . Electromagnetic . | . . . . . . Impact 1244 | . . . 818 137 289 Slashing . | . . . . . . Piercing . | . . . . . . Highest Corruption 5 | . . . . . 5 Average Corruption 5 | . . . . . 5 Corruption Purged . | . . . . . . Corruption Blocked . | . . . . . . Overload Shots . | . . . . . . Overflow Damage 251 | . . . 31 87 133 Projectiles . | . . . . . . Explosions . | . . . . . . Melee 251 | . . . 31 87 133 Knockbacks 3 | . . . 2 . 1 Impact 3 | . . . 2 . 1 Kinetic . | . . . . . . Secondary . | . . . . . . Self-Inflicted Damage . | . . . . . . Shots . | . . . . . . Rammed . | . . . . . . Targets Rammed 1 | 1 . . . . . Kicked 1 | 1 . . . . . Crushed . | . . . . . . Highest Temperature . | . . . . . . Average Temperature . | . . . . . . Received Heat Transfer 632 | . 30 . 498 24 80 Siege Activations . | . . . . . . Martial Activations . | . . . . . . Shielding Activations . | . . . . . . Robots Disrupted . | . . . . . . Combat Hostiles . | . . . . . . Robots Corrupted 2 | . . . 1 1 . Combat Hostiles 2 | . . . 1 1 . Parts Fried . | . . . . . . Impact Corruptions 11 | . . . 2 3 6 Robots Melted . | . . . . . . Combat Hostiles . | . . . . . . Parts Melted . | . . . . . . Heat Transferred . | . . . . . . Parts Sabotaged . | . . . . . . Parts Stolen . | . . . . . . Parts Stripped . | . . . . . . Power Chain Reactions . | . . . . . . Alert | -11 -10 -10 -9 -9 -9 ------- Run | Yrd Mat Min Mat Min Exi Maximum Alert Level . | . . . . . . Low Security (%) 100 | 100 100 100 100 100 . Level 1 . | . . . . . . Level 2 . | . . . . . . Level 3 . | . . . . . . Level 4 . | . . . . . . Level 5 . | . . . . . . High Security . | . . . . . . Max Security . | . . . . . . Peak Influence 80 | . 15 . 80 59 . Initial 9 | . . . . 9 . Average 18 | . 2 . 27 41 . Influence Increases 290 | . 30 . 210 50 . Destroy 0b10 Robot/C 180 | . . . 140 40 . Destroy Leader 50 | . . . 40 10 . Partial Spotted 15 | . . . 15 . . Lose Combat Pursuer 45 | . 30 . 15 . . Influence Decreases 290 | . 30 . 185 56 19 Entered New Map 35 | . . . . 16 19 Time Decay 205 | . 30 . 135 40 . Lost Part 50 | . . . 50 . . Squads Dispatched 4 | . 2 . 1 1 . Investigation 3 | . 2 . . 1 . Extermination . | . . . . . . Reinforcement 1 | . . . 1 . . Assault . | . . . . . . Garrison . | . . . . . . Intercept . | . . . . . . Searches Triggered . | . . . . . . Construction Impeded . | . . . . . . Haulers Reinforced . | . . . . . . Active Scanning Responses . | . . . . . . Cargo Convoy Interrupts . | . . . . . . Stealth | -11 -10 -10 -9 -9 -9 --------- Run | Yrd Mat Min Mat Min Exi Distress Signals . | . . . . . . Communications Jammed . | . . . . . . Distress Signals . | . . . . . . Times Spotted 38 | . 5 1 12 1 19 Peak Tracking Total 11 | . 3 1 7 1 11 Tactical Retreats 5 | . 2 . 1 . 2 Traps | -11 -10 -10 -9 -9 -9 ------- Run | Yrd Mat Min Mat Min Exi Traps Triggered 1 | . 1 . . . . Indirectly . | . . . . . . Trap Hack Attempts . | . . . . . . Triggered . | . . . . . . Disarmed . | . . . . . . Reprogrammed . | . . . . . . Reused . | . . . . . . Traps Extracted . | . . . . . . Installed . | . . . . . . Triggered . | . . . . . . Machines | -11 -10 -10 -9 -9 -9 ---------- Run | Yrd Mat Min Mat Min Exi Machines Disabled . | . . . . . . Max in Single Turn . | . . . . . . Machines Repaired . | . . . . . . Machines Dismantled . | . . . . . . Machines Sabotaged . | . . . . . . Overloaded Fab Kills . | . . . . . . Hacking | -11 -10 -10 -9 -9 -9 --------- Run | Yrd Mat Min Mat Min Exi Machines Accessed 7 | . 4 . 1 1 1 Terminals 5 | . 3 . 1 1 . Fabricators . | . . . . . . Repair Stations . | . . . . . . Recycling Units 1 | . 1 . . . . Scanalyzers . | . . . . . . Garrison Access . | . . . . . . Total Hacks 20 | . 10 . 4 2 4 Successful 6 | . 1 . 1 . 4 Failed 14 | . 9 . 3 2 . Catastrophic 1 | . 1 . . . . Database Lockouts . | . . . . . . Manual 2 | . . . . 2 . Terminals 11 | . 5 . 4 2 . Fabricators . | . . . . . . Repair Stations . | . . . . . . Recycling Units 5 | . 5 . . . . Scanalyzers . | . . . . . . Garrison Access . | . . . . . . Terminal Hacks 5 | . . . 1 . 4 Record 4 | . . . . . 4 Locate Traps 1 | . . . 1 . . Fabricator Hacks . | . . . . . . Repair Station Hacks . | . . . . . . Recycling Unit Hacks 1 | . 1 . . . . Retrieve Components 1 | . 1 . . . . Scanalyzer . | . . . . . . Garrison Access Hacks . | . . . . . . Unauthorized Hacks . | . . . . . . Terminals . | . . . . . . Fabricators . | . . . . . . Repair Stations . | . . . . . . Recycling Units . | . . . . . . Scanalyzers . | . . . . . . Garrison Access . | . . . . . . Data Cores Recovered . | . . . . . . Used . | . . . . . . Hacking Detections 5 | . 3 . 1 1 . Full Trace Events 3 | . 2 . . 1 . Feedback Events . | . . . . . . Feedback Blocked . | . . . . . . Robot Schematics Acquired . | . . . . . . Robots Built . | . . . . . . Authchips . | . . . . . . Time . | . . . . . . Total Robot Build Rating . | . . . . . . Part Schematics Acquired . | . . . . . . Parts Built . | . . . . . . Authchips . | . . . . . . Time . | . . . . . . Total Part Build Rating . | . . . . . . Parts Repaired . | . . . . . . Time . | . . . . . . Parts Recycled . | . . . . . . Recycled Matter . | . . . . . . Retrieved Matter . | . . . . . . Retrieved Components 3 | . 3 . . . . Parts Scanalyzed . | . . . . . . Part Schematics Acquired . | . . . . . . Parts Damaged . | . . . . . . Bothacking | -11 -10 -10 -9 -9 -9 ------------ Run | Yrd Mat Min Mat Min Exi Used RIF Installer . | . . . . . . Robots Hacked . | . . . . . . Non-combat . | . . . . . . Combat . | . . . . . . Robot Hacks Applied . | . . . . . . Relay Couplers Released . | . . . . . . Fabnet Peak Effective % . | . . . . . . Robots Rewired . | . . . . . . Allies Hacked . | . . . . . . Hacks Repelled . | . . . . . . Allies | -11 -10 -10 -9 -9 -9 -------- Run | Yrd Mat Min Mat Min Exi Total Allies . | . . . . . . Largest Group . | . . . . . . Highest-Rated Group . | . . . . . . Highest-Rated Ally . | . . . . . . Total Orders . | . . . . . . Ally Attacks . | . . . . . . Total Damage . | . . . . . . Kills . | . . . . . . Allies Corrupted . | . . . . . . Allies Melted . | . . . . . . Intel | -11 -10 -10 -9 -9 -9 ------- Run | Yrd Mat Min Mat Min Exi Active Infowar (turns) . | . . . . . . Robot Analysis Total . | . . . . . . Derelict Logs Recovered . | . . . . . . Drone Launches . | . . . . . . Drone Recoveries . | . . . . . . Exploration | -11 -10 -10 -9 -9 -9 ------------- Run | Yrd Mat Min Mat Min Exi Turns Passed 1710 | 66 234 34 373 80 923 Spaces Moved 1316 | 47 195 29 242 59 744 Core 8 | 8 . . . . . Treads . | . . . . . . Legs 1220 | 39 195 29 154 59 744 Wheels . | . . . . . . Hover . | . . . . . . Flight 88 | . . . 88 . . Fastest Speed 29 | 50 120 120 29 120 120 Average Speed 115 | 113 120 120 99 121 120 Slowest Speed 190 | 120 120 120 190 190 120 Overloaded Moves . | . . . . . . Propulsion Burnouts . | . . . . . . Robots Hopped . | . . . . . . Potential Cave-ins . | . . . . . . Cave-ins Triggered . | . . . . . . Exploration Rate (%) 29 | 3 32 10 23 17 92 Regions Visited 5 Branch Regions 3 Pre-discovered Areas 1 | . . . . . 1 Known Exits Taken . | . . . . . . Unknown Exits Taken 5 | 1 1 1 1 1 . Scrap Searched . | . . . . . . Spaces Dug . | . . . . . . Terrain Destroyed . | . . . . . . Melee . | . . . . . . Projectile . | . . . . . . AOE . | . . . . . . Terrain Rammed . | . . . . . . Walls Destroyed . | . . . . . . Machines Disabled . | . . . . . . Actions | -11 -10 -10 -9 -9 -9 --------- Run | Yrd Mat Min Mat Min Exi Total 1433 | 59 195 28 329 64 758 Wait 25 | . . . 24 . 1 Move 1311 | 46 194 28 241 58 744 Hop . | . . . . . . Pick Up 25 | 8 1 . 13 2 1 Fast Attach 1 | . . . 1 . . Attach 13 | 4 . . 7 2 . Detach . | . . . . . . Swap 7 | . . . 7 . . Drop 7 | . . . 6 . 1 Fire . | . . . . . . Melee 43 | . . . 30 2 11 Ram . | . . . . . . Kick 1 | 1 . . . . . Crush . | . . . . . . Escape Stasis . | . . . . . . Rewire . | . . . . . . Trap . | . . . . . . Miscellaneous . | . . . . . . Route ------- -11/Scrapyard -10/Materials -10/Mines -9/Materials -9/Mines -9/Exiles (discovered 2 exits: [*Min x2]) History --------- Turn | Location | Event 28 | -11/Scrapyard | Discovered new exit (range 15) 67 | -11/Scrapyard | Entered Materials 200 | -10/Materials | Discovered new exit (range 14) 301 | -10/Materials | Entered Mines 301 | -10/Mines | Discovered new exit (range 10) 315 | -10/Mines | Build established: Mutant 335 | -10/Mines | Entered Materials 335 | -9/Materials | Evolved 2 slots: Propulsion x1, Utility x1 535 | -9/Materials | Lost 3 parts (1p2n) 577 | -9/Materials | Discovered new exit (range 7) 708 | -9/Materials | Entered Mines 782 | -9/Mines | Deemed a non-threat by the Exiles lab entrance 783 | -9/Mines | Discovered new exit (range 5) 788 | -9/Mines | Entered Exiles 811 | -9/Exiles | Discovered new exit (range 15) 830 | -9/Exiles | Met 8R-AWN 847 | -9/Exiles | Met EX-HEX 920 | -9/Exiles | Met EX-DEC 960 | -9/Exiles | Visited The Gauntlet 1167 | -9/Exiles | Discovered new exit (range 14) 1223 | -9/Exiles | Learned location of Zion (-6) 1262 | -9/Exiles | Met EX-BIN 1648 | -9/Exiles | Attacked by the Exiles 1651 | -9/Exiles | Core integrity fell below 50% 1697 | -9/Exiles | Core integrity fell below 20% 1711 | -9/Exiles | Destroyed by as-74478 with Assembled Rifle Last Messages --------------- 01667_ Ion Engine destroyed. 01686_ Flail follow-up attack on as-61796. 01686_ Destroyed Asb. Hover Unit. 01686_ as-61796 system corrupted by crushing effect. 01686_ as-61796 destroyed. 01692_ Destroyed Asb. Hover Unit. 01692_ as-94757 system corrupted by crushing effect. 01692_ as-94757 knocked back. 01693_ Aluminum Leg destroyed. 01693_ System corrupted by crushing effect (+5). 01702_ Machine disabled. 01704_ Destroyed Asb. Hover Unit. 01704_ as-46820 system corrupted by crushing effect. 01705_ Hrd. Light Armor Plating destroyed. 01707_ as-46820 destroyed. 01707_ Machine disabled. 01708_ Aluminum Leg destroyed. Map ----- +----------------------------------------------------+ | ?????????????????????????????????????????????????? | | ?????????????????????????????????????????????????? | | ?????????????????????????????????????????????????? | | ?????????#####???????????????????????????????????? | | ????????## ##??????????????????????????????????? | | ????????# #??????????????????????????????????? | | ????????# < #??????????????????????????????????? | | ????????# ###????????????????????????????????? | | ????????# #????????????????????????????????? | | ????????# #?????????????????????????????????? | | ????????## #?????????????????????????????????? | | ?????????# ##????????????????????????????????? | | ?????????## #????????????#######?????????????? | | ??????????# #######??????#!!! "#?????????????? | | ??????????# #""##?????# "#?????????????? | | ??????????## #?????# "#?????????????? | | ???????????##" ##???## ""#??????????#### | | ???????????#"" #####" ""#??????????# | | ???????????#### ##" ""#??????????#"" | | ??????????????## #"" #????????????#"" | | ???????????????#"## #????????????#"" | | ???????????????####### ##???????????#"" | | ?????????????????????### aa "#???????????# | | ???????????????######## aa ###?????????#"" | | ???????????????# !!""""" %a ##????????### | | ???????????????#! @ ###"" ######???### | | ???????????????#! "#?##" """#####X# | | ???????????????#! ##??#" | | ???????????????# !""""""###???#"# | | ???????????????##########?????#### | | ?????????????????????????????????### | | ???????????????????????????????????### | | ?????????????????????????????????????## | | ??????????????????????????????????????## | | ???????????????????????????????????????##" | | ????????????????????????????????????????#""" | | ???????????????????????????????????????##" | | ???????????????????????????????????????#"" | | ??????????????????????????????????????##"" % | | ??????????????????????????????????????#""" | | ??????????????????????????????????????#"" | | ??????????????????????????????????????#""% | | ??????????????????????????????????????#""" | | ??????????????????????????????????????#"" | | ??????????????????????????????????????##"" | | ???????????????????????????????????????#""" | | ???????????????????????????????????????## | | ????????????????????????????????????????#" | | ????????????????????????????????????????#"""" | | ????????????????????????????????????????#"" | +----------------------------------------------------+ Best States ------------- Heat Dissipation 42 Energy Generation 10 Energy Capacity 250 Matter Stores 300 Matter Capacity 300 Sight Range 16 Terrain Scan Density 10 Armor Coverage 150 Evasion (%) 64 Item Schematics ----------------- None Robot Schematics ------------------ None Fabricated ------------ Nothing Repaired ---------- Nothing Alien Tech Used ----------------- None Achievements -------------- None Challenges ------------ None Game ------ Seed BarrageRecyclingSpecial Manual? 0 Play Time 00:17:04 Cumulative 9.6 hours Start 2025.09.15 @ 21:48:13 End 2025.09.15 @ 22:12:25 Sessions 1 Manual Loads 0 Difficulty Rogue Special Mode None Game No. 29 Rogue 29 Adventurer 0 Explorer 0 Win Type - Total 0 Types 0/0/0/0/0/0/0/0/0/0 Lore% 19 Gallery% 10 Achievement% 15 Wizard Run 0 Options --------- Layout 2 ASCII 0 Keyboard 0 Movement Mouse Keybinds 0 Fullscreen 1 Font 24/Smallcaps Map View 50x44 Zoom Use 0% Tactical HUD 1 Map Filters NONE Filters NONE Steam 1 RUN: 81a9b1e7-e15e-453b-b339-971d06711506